Cogmind - Beta 11.1 *** ADVENTURER MODE // 2022.08.31 @ 18:09:47 Player: Chloe Result: Self-destructed Performance ------------- Evolutions (2) 1000 Regions Visited (6) 1200 Robots Destroyed (18) 90 Value Destroyed (443) 443 Prototype IDs (1) 20 Alien Tech Used (0) 0 Bonus (0) 0 TOTAL SCORE: 2753 Bonus ------- None Cogmind --------- Core Integrity 503/550 Matter 408/500 Energy 100/100 System Corruption 0% Temperature Hot (266) Movement Walking (120) Location -8/Materials Parts ------- > --- POWER (2) -------- (None) > --- PROPULSION (4) --- Aluminum Leg Aluminum Leg > --- UTILITY (2) ------ Small Storage Unit High-capacity Matter Pod > --- WEAPON (3) ------- Light Assault Rifle Light Assault Rifle > --- INVENTORY (8) ---- Light Fission Core Mining Laser Peak State ------------ > --- POWER ------------ Ion Engine > --- PROPULSION ------- Aluminum Leg Aluminum Leg Aluminum Leg Aluminum Leg > --- UTILITY ---------- Small Storage Unit Experimental Sensor Array > --- WEAPON ----------- Small Laser Assault Rifle > --- INVENTORY -------- Ion Engine Light Nuclear Core Aluminum Leg Heat Sink Assault Rifle Light Assault Rifle Mining Laser [Rating: 17] Favorites ----------- Power Ion Engine Engine Ion Engine Power Core Light Nuclear Core Propulsion Aluminum Leg Leg Aluminum Leg Utility Small Storage Unit Device Heat Sink Storage Small Storage Unit Weapon Assault Rifle Energy Gun Small Laser Ballistic Gun Assault Rifle Impact Weapon Great Maul Build | -11 -10 -9 -9 -9 -8 -8 ------- Run | Scr Mat Mat Min Exi Min Mat Slots Evolved 4 | . . 2 . . . 2 Power 1 | . . . . . . 1 Propulsion 2 | . . 2 . . . . Utility . | . . . . . . . Weapon 1 | . . . . . . 1 Parts Attached 29 | 6 . . 13 2 2 6 Power 6 | 1 . . 3 1 . 1 Engine 5 | 1 . . 3 . . 1 Core 1 | . . . . 1 . . Reactor . | . . . . . . . Propulsion 11 | 2 . . 6 . . 3 Treads . | . . . . . . . Leg 11 | 2 . . 6 . . 3 Wheel . | . . . . . . . Hover . | . . . . . . . Flight . | . . . . . . . Utility 5 | 1 . . 3 1 . . Device 3 | . . . 3 . . . Storage 2 | 1 . . . 1 . . Processor . | . . . . . . . Hackware . | . . . . . . . Protection . | . . . . . . . Artifact . | . . . . . . . Weapon 7 | 2 . . 1 . 2 2 Energy Gun 2 | 1 . . . . 1 . Energy Cannon . | . . . . . . . Ballistic Gun 4 | 1 . . 1 . . 2 Ballistic Cannon . | . . . . . . . Launcher . | . . . . . . . Special Weapon . | . . . . . . . Impact Weapon 1 | . . . . . 1 . Slashing Weapon . | . . . . . . . Piercing Weapon . | . . . . . . . Special Melee Weapon . | . . . . . . . Unidentified Prototypes 1 | . . . 1 . . . Parts Lost 9 | . . . 3 . . 6 Power 3 | . . . 1 . . 2 Propulsion 3 | . . . 1 . . 2 Utility 1 | . . . 1 . . . Weapon 2 | . . . . . . 2 Highest Loss Streak 6 | . . . 2 . . 6 To Critical Strikes . | . . . . . . . Average Slot Usage (%) 91 | . 85 66 92 91 100 93 Engine 7 | . 14 11 11 1 . 9 Core 4 | . . . . 9 11 8 Leg 38 | . 28 22 40 44 44 31 Device 2 | . . . 6 . . . Storage 14 | . 14 11 11 14 22 18 Energy Gun 11 | . 14 11 11 11 11 8 Ballistic Gun 12 | . 14 11 11 11 11 18 Naked Turns . | . . . . . . . Heaviest Build 21 | 13 13 13 14 17 17 21 Greatest Support 43 | 20 20 20 43 43 43 43 Greatest Overweight (x) . | . . . . . . . Average Overweight (x) . | . . . . . . . Largest Inventory Capacity 8 | 8 8 8 8 8 8 8 Average Capacity 7 | 6 8 8 8 8 8 8 Most Carried 8 | 3 5 5 8 8 6 4 Average Carried 5 | 1 3 5 6 6 5 3 Final Capacity 8 | 8 8 8 8 8 8 8 Final Carried 8 | 2 5 5 8 6 5 2 Class Distribution -------------------- 65% | Mutant 22% | Scavenger-Mutant 8% | Scavenger-Gunner 3% | Gunner Dominant Class ---------------- Mutant | -10/Materials Mutant | -9/Materials Scavenger-Mutant | -9/Mines Mutant | -9/Exiles Mutant | -8/Mines Scavenger-Gunner | -8/Materials Resources | -11 -10 -9 -9 -9 -8 -8 ----------- Run | Scr Mat Mat Min Exi Min Mat Matter Collected 530 | 111 123 . 270 10 16 . Remotely . | . . . . . . . Salvage Created 609 | . 166 . 443 . . . Parts 30 | . 5 . 25 . . . Haulers Intercepted . | . . . . . . . Recyclers Shooed . | . . . . . . . Parts Field Recycled . | . . . . . . . Retrieved Matter . | . . . . . . . Parts Self-Destructed . | . . . . . . . Prevented . | . . . . . . . Kills | -11 -10 -9 -9 -9 -8 -8 ------- Run | Scr Mat Mat Min Exi Min Mat Combat Hostiles Destroyed 15 | . 2 . 13 . . . Guns 15 | . 2 . 13 . . . Classes Destroyed 5 | . 2 . 3 . . . Worker 1 | . . . 1 . . . Tunneler 1 | . . . 1 . . . Recycler 1 | . 1 . . . . . Swarmer 5 | . . . 5 . . . Grunt 10 | . 2 . 8 . . . Best Kill Streak 7 | . 2 . 7 . . . Combat Bots Only 6 | . 2 . 6 . . . Max Kills in Single Turn 2 | . 1 . 2 . . . Gunslinging . | . . . . . . . Exploded . | . . . . . . . Melee . | . . . . . . . Uniques/NPCs Destroyed . | . . . . . . . Combat | -11 -10 -9 -9 -9 -8 -8 -------- Run | Scr Mat Mat Min Exi Min Mat Damage Taken 1383 | . 70 . 761 . . 552 Core 189 | . 9 . 133 . . 47 Absorbed by Shields . | . . . . . . . Regen/Repaired (Parts) 130 | . . . . . . 130 Core Remaining (%) 87 | 100 96 . . . 66 . Volleys Fired 54 | . 7 . 36 . . 11 Largest 3 | . 2 . 2 . . 3 Hottest 80 | . 60 . 60 . . 80 Shots Fired 112 | . 14 . 72 . . 26 Gun 112 | . 14 . 72 . . 26 Cannon . | . . . . . . . Launcher . | . . . . . . . Special . | . . . . . . . Kinetic 63 | . 7 . 36 . . 20 Thermal 49 | . 7 . 36 . . 6 Explosive . | . . . . . . . Electromagnetic . | . . . . . . . Robot Hit Streak 23 | . 11 . 23 . . 5 Robot Miss Streak 3 | . 2 . 2 . . 3 Penetration Max . | . . . . . . . Secondary Targets 5 | . 1 . 4 . . . Max Gunslinging Chain 1 | . 1 . 1 . . . Shots Hit Robots 82 | . 11 . 54 . . 17 Core Hits 38 | . 7 . 27 . . 4 Critical Kills . | . . . . . . . Critical Parts Destroyed . | . . . . . . . Critical Strikes . | . . . . . . . Melee Attacks . | . . . . . . . Impact . | . . . . . . . Slashing . | . . . . . . . Piercing . | . . . . . . . Sneak Attacks . | . . . . . . . Combat Hostiles . | . . . . . . . Follow-up Attacks . | . . . . . . . Damage Inflicted 1005 | . 142 . 686 . . 177 Guns 1005 | . 142 . 686 . . 177 Cannons . | . . . . . . . Explosions . | . . . . . . . Melee . | . . . . . . . Ramming . | . . . . . . . Kinetic 609 | . 74 . 379 . . 156 Thermal 396 | . 68 . 307 . . 21 Explosive . | . . . . . . . Electromagnetic . | . . . . . . . Impact . | . . . . . . . Slashing . | . . . . . . . Piercing . | . . . . . . . Highest Corruption . | . . . . . . . Average Corruption . | . . . . . . . Corruption Purged . | . . . . . . . Corruption Blocked . | . . . . . . . Overload Shots . | . . . . . . . Overflow Damage . | . . . . . . . Projectiles . | . . . . . . . Explosions . | . . . . . . . Melee . | . . . . . . . Knockbacks . | . . . . . . . Impact . | . . . . . . . Kinetic . | . . . . . . . Secondary . | . . . . . . . Self-Inflicted Damage . | . . . . . . . Shots . | . . . . . . . Rammed . | . . . . . . . Targets Rammed . | . . . . . . . Kicked . | . . . . . . . Crushed . | . . . . . . . Highest Temperature 292 | . 69 . 79 . . 292 Average Temperature 56 | . 47 . 22 . . 108 Received Heat Transfer 789 | . 69 . 396 . . 324 Siege Activations . | . . . . . . . Robots Corrupted . | . . . . . . . Combat Hostiles . | . . . . . . . Parts Fried . | . . . . . . . Impact Corruptions . | . . . . . . . Robots Melted . | . . . . . . . Combat Hostiles . | . . . . . . . Parts Melted . | . . . . . . . Heat Transferred 900 | . 150 . 700 . . 50 Parts Sabotaged . | . . . . . . . Parts Stolen . | . . . . . . . Parts Stripped . | . . . . . . . Power Chain Reactions . | . . . . . . . Missiles Intercepted . | . . . . . . . Alert | -11 -10 -9 -9 -9 -8 -8 ------- Run | Scr Mat Mat Min Exi Min Mat Peak Influence 295 | . 61 21 295 . . 15 Initial 21 | . . 21 6 . . . Average 71 | . 27 21 156 . . 3 Maximum Alert Level 1 | . . . 1 . . . Low Security (%) 89 | 100 100 100 74 . 100 100 Level 1 10 | . . . 25 . . . Level 2 . | . . . . . . . Level 3 . | . . . . . . . Level 4 . | . . . . . . . Level 5 . | . . . . . . . High Security . | . . . . . . . Max Security . | . . . . . . . Squads Dispatched 1 | . . . . . . 1 Investigation . | . . . . . . . Extermination . | . . . . . . . Reinforcement 1 | . . . . . . 1 Assault . | . . . . . . . Garrison . | . . . . . . . Intercept . | . . . . . . . Searches Triggered . | . . . . . . . Construction Impeded . | . . . . . . . Haulers Reinforced . | . . . . . . . Active Scanning Responses . | . . . . . . . Cargo Convoy Interrupts . | . . . . . . . Stealth | -11 -10 -9 -9 -9 -8 -8 --------- Run | Scr Mat Mat Min Exi Min Mat Distress Signals 2 | . . . . . . 2 Communications Jammed . | . . . . . . . Distress Signals . | . . . . . . . Times Spotted 28 | . 2 . 16 . . 10 Peak Tracking Total 12 | . 2 . 7 . . 12 Tactical Retreats . | . . . . . . . Traps | -11 -10 -9 -9 -9 -8 -8 ------- Run | Scr Mat Mat Min Exi Min Mat Traps Triggered . | . . . . . . . Indirectly . | . . . . . . . Trap Hack Attempts . | . . . . . . . Triggered . | . . . . . . . Disarmed . | . . . . . . . Reprogrammed . | . . . . . . . Reused . | . . . . . . . Traps Extracted . | . . . . . . . Installed . | . . . . . . . Triggered . | . . . . . . . Machines | -11 -10 -9 -9 -9 -8 -8 ---------- Run | Scr Mat Mat Min Exi Min Mat Machines Disabled . | . . . . . . . Max in Single Turn . | . . . . . . . Machines Sabotaged . | . . . . . . . Garrisons Compromised . | . . . . . . . Overloaded Fab Kills . | . . . . . . . Hacking | -11 -10 -9 -9 -9 -8 -8 --------- Run | Scr Mat Mat Min Exi Min Mat Machines Accessed 3 | . 1 . . 1 . 1 Terminals 1 | . 1 . . . . . Fabricators . | . . . . . . . Repair Stations 1 | . . . . . . 1 Recycling Units . | . . . . . . . Scanalyzers . | . . . . . . . Garrison Access . | . . . . . . . Total Hacks 32 | . 3 . . 23 . 6 Successful 31 | . 2 . . 23 . 6 Failed 1 | . 1 . . . . . Catastrophic . | . . . . . . . Database Lockouts . | . . . . . . . Manual . | . . . . . . . Terminals 3 | . 3 . . . . . Fabricators . | . . . . . . . Repair Stations 6 | . . . . . . 6 Recycling Units . | . . . . . . . Scanalyzers . | . . . . . . . Garrison Access . | . . . . . . . Terminal Hacks 25 | . 2 . . 23 . . Record 23 | . . . . 23 . . Patrol Status 1 | . 1 . . . . . Transport Status 1 | . 1 . . . . . Fabricator Hacks . | . . . . . . . Repair Station Hacks 6 | . . . . . . 6 Scan Component 3 | . . . . . . 3 Repair 3 | . . . . . . 3 Recycling Unit Hacks . | . . . . . . . Scanalyzer . | . . . . . . . Garrison Access Hacks . | . . . . . . . Unauthorized Hacks . | . . . . . . . Terminals . | . . . . . . . Fabricators . | . . . . . . . Repair Stations . | . . . . . . . Recycling Units . | . . . . . . . Scanalyzers . | . . . . . . . Garrison Access . | . . . . . . . Data Cores Recovered . | . . . . . . . Used . | . . . . . . . Hacking Detections 2 | . 1 . . . . 1 Full Trace Events 1 | . 1 . . . . . Feedback Events . | . . . . . . . Feedback Blocked . | . . . . . . . Robot Schematics Acquired . | . . . . . . . Robots Built . | . . . . . . . Authchips . | . . . . . . . Time . | . . . . . . . Total Robot Build Rating . | . . . . . . . Part Schematics Acquired . | . . . . . . . Parts Built . | . . . . . . . Authchips . | . . . . . . . Time . | . . . . . . . Total Part Build Rating . | . . . . . . . Parts Repaired 3 | . . . . . . 3 Time 78 | . . . . . . 78 Parts Recycled . | . . . . . . . Recycled Matter . | . . . . . . . Retrieved Matter . | . . . . . . . Retrieved Components . | . . . . . . . Parts Scanalyzed . | . . . . . . . Part Schematics Acquired . | . . . . . . . Parts Damaged . | . . . . . . . Bothacking | -11 -10 -9 -9 -9 -8 -8 ------------ Run | Scr Mat Mat Min Exi Min Mat Used RIF Installer . | . . . . . . . Robots Hacked . | . . . . . . . Non-combat . | . . . . . . . Combat . | . . . . . . . Robot Hacks Applied . | . . . . . . . Relay Couplers Released . | . . . . . . . Fabnet Peak Effective % . | . . . . . . . Robots Rewired . | . . . . . . . Allies Hacked . | . . . . . . . Hacks Repelled . | . . . . . . . Allies | -11 -10 -9 -9 -9 -8 -8 -------- Run | Scr Mat Mat Min Exi Min Mat Total Allies . | . . . . . . . Largest Group . | . . . . . . . Highest-Rated Group . | . . . . . . . Highest-Rated Ally . | . . . . . . . Total Orders . | . . . . . . . Ally Attacks . | . . . . . . . Total Damage . | . . . . . . . Kills . | . . . . . . . Allies Corrupted . | . . . . . . . Allies Melted . | . . . . . . . Intel | -11 -10 -9 -9 -9 -8 -8 ------- Run | Scr Mat Mat Min Exi Min Mat Robot Analysis Total . | . . . . . . . Derelict Logs Recovered 1 | . . . 1 . . . Drone Launches . | . . . . . . . Drone Recoveries . | . . . . . . . Exploration | -11 -10 -9 -9 -9 -8 -8 ------------- Run | Scr Mat Mat Min Exi Min Mat Turns Passed 1241 | 55 159 20 415 262 171 159 Spaces Moved 843 | 38 112 17 230 208 139 99 Core 5 | 5 . . . . . . Treads . | . . . . . . . Legs 838 | 33 112 17 230 208 139 99 Wheels . | . . . . . . . Hover . | . . . . . . . Flight . | . . . . . . . Fastest Speed 50 | 50 120 120 120 120 120 120 Average Speed 119 | 110 120 120 120 120 120 120 Slowest Speed 120 | 120 120 120 120 120 120 120 Overloaded Moves . | . . . . . . . Propulsion Burnouts . | . . . . . . . Robots Hopped . | . . . . . . . Cave-ins Triggered . | . . . . . . . Exploration Rate (%) 24 | 4 25 3 47 49 38 8 Regions Visited 6 Branch Regions 3 Pre-discovered Areas 1 | . . . . 1 . . Known Exits Taken . | . . . . . . . Unknown Exits Taken 6 | 1 1 1 1 1 1 . Scrap Searched 2 | . . . 1 . 1 . Spaces Dug . | . . . . . . . Terrain Destroyed . | . . . . . . . Melee . | . . . . . . . Projectile . | . . . . . . . AOE . | . . . . . . . Terrain Rammed . | . . . . . . . Walls Destroyed . | . . . . . . . Machines Disabled . | . . . . . . . Actions | -11 -10 -9 -9 -9 -8 -8 --------- Run | Scr Mat Mat Min Exi Min Mat Total 974 | 51 123 16 298 224 143 119 Wait . | . . . . . . . Move 837 | 37 111 16 229 207 138 99 Hop . | . . . . . . . Pick Up 36 | 8 4 . 13 7 1 3 Fast Attach . | . . . . . . . Attach 20 | 6 . . 6 2 . 6 Detach 1 | . . . 1 . . . Swap 9 | . . . 7 . 2 . Drop 17 | . 1 . 6 8 2 . Fire 54 | . 7 . 36 . . 11 Melee . | . . . . . . . Ram . | . . . . . . . Kick . | . . . . . . . Crush . | . . . . . . . Escape Stasis . | . . . . . . . Rewire . | . . . . . . . Trap . | . . . . . . . Miscellaneous . | . . . . . . . Route ------- -11/Scrapyard -10/Materials (discovered 2 exits: [*Mat] / [*Min]) -9/Materials -9/Mines -9/Exiles -8/Mines -8/Materials History --------- Turn | Location | Event 9 | -11/Scrapyard | Discovered new exit (range 14) 56 | -11/Scrapyard | Entered Materials 89 | -10/Materials | Discovered new exit (range 8) 133 | -10/Materials | Discovered new exit (range 14) 215 | -10/Materials | Entered another Materials area 215 | -9/Materials | Evolved 2 slots: Propulsion x2 215 | -9/Materials | Discovered new exit (range 14) 235 | -9/Materials | Entered Mines 312 | -9/Mines | Build established: Mutant 389 | -9/Mines | Found a damaged Exp. Sensor Array with a note attached 398 | -9/Mines | Found Prototype Device 399 | -9/Mines | Identified Exp. Sensor Array 645 | -9/Mines | Deemed a non-threat by the Exiles lab entrance 645 | -9/Mines | Discovered new exit (range 5) 650 | -9/Mines | Entered Exiles 701 | -9/Exiles | Met 8R-AWN 726 | -9/Exiles | Met EX-HEX 799 | -9/Exiles | Learned location of Zion (-7) 900 | -9/Exiles | Discovered new exit (range 10) 912 | -9/Exiles | Entered Mines 1069 | -8/Mines | Discovered new exit (range 9) 1083 | -8/Mines | Entered Materials 1083 | -8/Materials | Evolved 2 slots: Power x1, Weapon x1 1119 | -8/Materials | Repaired Aluminum Leg 1145 | -8/Materials | Repaired Aluminum Leg 1175 | -8/Materials | Repaired Aluminum Leg 1242 | -8/Materials | Self-destructed Last Messages --------------- 01175_ Repair station completes Aluminum Leg repairs. 01177_ Acquired Aluminum Leg. 01193_ O-16 Technician: "IFF HANDSHAKE FAILED. SECURING TERMINAL." 01200_ ALERT: Hostiles spotted, dispatching reinforcements to Terminal M002. 01221_ K-01 Serf collects debris. 01224_ W-25 Informer distress signal alerts nearby ally. 01226_ K-01 Serf collects debris. 01230_ Critical hit (Burn: +37). 01232_ Assault Rifle destroyed. 01234_ Sml. Laser destroyed. 01235_ Imp. Aluminum Leg destroyed. 01235_ Lgt. Nuclear Core destroyed. 01239_ W-25 Informer distress signal alerts nearby ally. 01242_ Aluminum Leg destroyed. 01242_ Lgt. Ion Engine destroyed. Map ----- +----------------------------------------------------+ | ?????????????????????????????????????????????????? | | ?????????????????????????????????????????????????? | | ?????????????????????????????????????????????????? | | ?????????????????????????????????????????????????? | | ?????????????????????????????????????????????????? | | ?????????????????????????????????????????????????? | | ?????????????????????????????????????????????????? | | ??????#####??????????????????????????????????????? | | ??????# #??????????????????????????????????????? | | ??????# #??????????????????????????????????????? | | ??????# #??????????????????????????????????????? | | ??????# +??????????????????????????????????????? | | ??????# #??????????????????????????????????????? | | ??????# ############???????????????????????????? | | ??????# ## #???????????????????????????? | | ????# ## """ [ #???????????????????????????? | | ??# ## "R" #???????????????????????????? | | # ## " " #???????????????????????????? | | + ## """ #???????????????????????????? | | # ## """ #???????????????????????????? | | ??# ## """ #???????????????????????????? | | ##???## ## #??###+###??????????????????? | | ?????# ###+########## ###+########???????? | | ?????# g ??????? | | ?????# [ g ??????? | | ?????# @ g ??????? | | ?????# ###+########## ??????? | | ?????#######????????????## s s w ??????? | | ????????????????????????? s ???????? | | ???????????????????????? ###### ######???????? | | ???????????????????????* #???????????????????? | | ???????????????????????* #???????????????????? | | ??????????????????????// #???????????????????? | | ?????????????????????#// #???????????????????? | | ?????????????????????##### #???????????????????? | | ?????????????????????????# #???????????????????? | | ?????????????????????????# #???????????????????? | | ?????????????????????????# +???????????????????? | | ?????????????????????????? #???????????????????? | | ?????????????????????????? #???????????????????? | | ?????????????????????????? ????????????????????? | | ?????????????????????????????????????????????????? | | ?????????????????????????????????????????????????? | | ?????????????????????????????????????????????????? | | ?????????????????????????????????????????????????? | | ?????????????????????????????????????????????????? | | ?????????????????????????????????????????????????? | | ?????????????????????????????????????????????????? | | ?????????????????????????????????????????????????? | | ?????????????????????????????????????????????????? | +----------------------------------------------------+ Best States ------------- Heat Dissipation 38 Energy Generation 19 Energy Capacity 250 Matter Stores 496 Matter Capacity 500 Sight Range 16 Robot Scan Range 20 Terrain Scan Density 10 Resistance: KI 20 Resistance: TH 20 Resistance: EX 20 Resistance: EM 20 Resistance: I 20 Resistance: S 20 Resistance: P 20 Evasion (%) 55 Offensive Hacking 10 Item Schematics ----------------- None Robot Schematics ------------------ None Fabricated ------------ Nothing Alien Tech Used ----------------- None Achievements -------------- Librarian Risk Taker Challenges ------------ None Game ------ Seed SmartbombPotentialThruster Manual? 0 Play Time 00:17:37 Cumulative 3.1 hours Start 2022.08.31 @ 17:52:54 End 2022.08.31 @ 18:09:47 Sessions 1 Manual Loads 0 Difficulty Adventurer Special Mode None Game No. 6 Rogue 0 Adventurer 6 Explorer 0 Win Type - Total 0 Types 0/0/0/0/0/0/0/0/0 Lore% 5 Gallery% 7 Achievement% 8 Wizard Run 0 Options --------- ASCII 0 Keyboard 0 Movement Mouse Keybinds 0 Fullscreen 0 Font 32/Terminus Map View 50x50 Tactical HUD 1 Map Filters NONE Filters NONE Steam 1 RUN: 95de06b0-c92e-424f-87de-bc437b3caa3a